[Event "ETCC Open 2023"]
[Site "Budva"]
[Date "2023.11.14"]
[Round "4.48"]
[White "Vykouk, Jan"]
[Black "Quparadze, Giga"]
[Result "1/2-1/2"]
[ECO "B42"]
[WhiteElo "2488"]
[BlackElo "2490"]
[Annotator "ChessBase"]
[PlyCount "188"]
[EventDate "2023.11.10"]
[EventType "team-tourn"]
[EventCountry "MNE"]
[SourceTitle "playchess.com"]
[Source "ChessBase"]
[SourceQuality "1"]
[WhiteTeam "Czech Republic"]
[BlackTeam "Georgia"]
[WhiteTeamCountry "CZE"]
[BlackTeamCountry "GEO"]
[TimeControl "40/5400+30:1800+30"]

1. e4 {[%emt 0:00:03]} c5 {[%emt 0:00:07]} 2. Nf3 {[%emt 0:00:06]} e6 {[%emt 0:00:06]} 3. d4 {[%emt 0:00:05]} cxd4 {[%emt 0:00:07]} 4. Nxd4 {[%emt 0:00:04]} a6 {[%emt 0:00:05]} 5. Bd3 {[%emt 0:00:10]} d5 {[%emt 0:00:09]} 6. exd5 {[%emt 0:02:13]} Qxd5 {[%emt 0:00:15]} 7. O-O {[%emt 0:00:56]} Nd7 {[%emt 0:00:07]} 8. Be3 {[%emt 0:02:50]} Bc5 {[%emt 0:00:31]} 9. Nc3 {[%emt 0:23:46]} Qe5 {[%emt 0:00:07]} 10. Nf3 {[%emt 0:03:05]} Qc7 {[%emt 0:00:10]} 11. Qe2 {[%emt 0:00:41]} Bxe3 {[%emt 0:00:15]} 12. Qxe3 {[%emt 0:00:06]} Ngf6 {[%emt 0:00:04]} 13. Ne4 {[%emt 0:05:29]} b6 {[%emt 0:01:47]} 14. Rad1 {[%emt 0:12:06]} Bb7 {[%emt 0:00:18]} 15. Rfe1 {[%emt 0:02:12]} O-O {[%emt 0:00:56]} 16. c3 {[%emt 0:04:14]} Rad8 {[%emt 0:02:31]} 17. Nxf6+ {[%emt 0:07:19]} Nxf6 {[%emt 0:00:06]} 18. Nd4 {[%emt 0:00:13]} Rfe8 {[%emt 0:00:40]} 19. Qg3 {[%emt 0:01:29]} Qc5 {[%emt 0:04:17]} 20. Re5 {[%emt 0:05:07]} Rd5 {[%emt 0:00:05]} 21. Rde1 {[%emt 0:00:59]} Red8 {[%emt 0:00:06]} 22. Bc2 {[%emt 0:05:26]} h6 {[%emt 0:01:26]} 23. h3 {[%emt 0:00:37]} Qd6 {[%emt 0:04:36]} 24. Rxd5 {[%emt 0:01:39]} Bxd5 {[%emt 0:00:32]} 25. Qxd6 {[%emt 0:03:02]} Rxd6 {[%emt 0:00:05]} 26. Bb3 {[%emt 0:01:11]} Kf8 {[%emt 0:00:16]} 27. Kf1 {[%emt 0:02:50]} Bb7 {[%emt 0:00:12]} 28. h4 {[%emt 0:04:09]} g6 {[%emt 0:00:17]} 29. g3 {[%emt 0:01:14]} Ke7 {[%emt 0:00:59]} 30. Ke2 {[%emt 0:02:49]} e5 {[%emt 0:01:13]} 31. Kf1 {[%emt 0:03:57]} Ne4 {[%emt 0:00:25]} 32. Nf3 {[%emt 0:03:29]} f6 {[%emt 0:04:22]} 33. Ke2 {[%emt 0:00:29]} Nc5 {[%emt 0:01:32]} 34. Bc2 {[%emt 0:00:26]} g5 {[%emt 0:00:47]} 35. hxg5 {[%emt 0:00:12]} hxg5 {[%emt 0:00:07]} 36. Ke3 {[%emt 0:02:26]} a5 {[%emt 0:01:40]} 37. Rd1 {[%emt 0:00:20]} Bd5 {[%emt 0:00:35]} 38. b3 {[%emt 0:00:51]} b5 {[%emt 0:00:03]} 39. Nh2 {[%emt 0:00:49]} b4 {[%emt 0:03:39]} 40. cxb4 {[%emt 0:00:42]} axb4 {[%emt 0:00:07]} 41. Ng4 {[%emt 0:12:53]} Nb7 {[%emt 0:02:31]} 42. Nh6 {[%emt 0:04:29]} Be6 {[%emt 0:00:05]} 43. Rh1 {[%emt 0:00:23]} Rc6 {[%emt 0:01:27]} 44. Nf5+ {[%emt 0:01:07]} Kd8 {[%emt 0:00:05]} 45. Bb1 {[%emt 0:02:57]} Rc3+ {[%emt 0:02:35]} 46. Ke2 {[%emt 0:00:06]} Bxf5 {[%emt 0:00:45]} 47. Bxf5 {[%emt 0:00:06]} Nd6 {[%emt 0:00:03]} 48. Rh8+ {[%emt 0:00:58]} Kc7 {[%emt 0:00:07]} 49. Bg6 {[%emt 0:01:50]} Nb5 {[%emt 0:04:28]} 50. Rf8 {[%emt 0:01:06]} Nd4+ {[%emt 0:01:05]} 51. Ke1 {[%emt 0:00:38]} Rc6 {[%emt 0:00:22]} 52. Rf7+ {[%emt 0:01:40]} Kd8 {[%emt 0:00:06]} 53. Bd3 {[%emt 0:00:54]} e4 {[%emt 0:00:28]} 54. Bc4 {[%emt 0:04:27]} Rd6 {[%emt 0:02:04]} 55. Rf8+ {[%emt 0:01:20]} Kd7 {[%emt 0:00:58]} 56. Rf7+ {[%emt 0:00:05]} Kc6 {[%emt 0:05:34]} 57. Ra7 {[%emt 0:00:12]} f5 {[%emt 0:00:36]} 58. Ra6+ {[%emt 0:00:49]} Kd7 {[%emt 0:00:20]} 59. Ra7+ {[%emt 0:00:10]} Kd8 {[%emt 0:00:14]} 60. Ra5 {[%emt 0:02:34]} Ke7 {[%emt 0:01:52]} 61. Bd5 {[%emt 0:00:22]} Kf6 {[%emt 0:00:25]} 62. Kf1 {[%emt 0:01:18]} Nf3 {[%emt 0:02:17]} 63. Ke2 {[%emt 0:00:10]} Ne5 {[%emt 0:00:32]} 64. Ke3 {[%emt 0:00:22]} Ng4+ {[%emt 0:02:30]} 65. Ke2 {[%emt 0:00:04]} Rd8 {[%emt 0:00:35]} 66. f3 {[%emt 0:00:36]} exf3+ {[%emt 0:00:25]} 67. Bxf3 {[%emt 0:00:38]} Re8+ {[%emt 0:00:06]} 68. Kf1 {[%emt 0:00:28]} Ne5 {[%emt 0:00:12]} 69. Be2 {[%emt 0:00:10]} Rd8 {[%emt 0:00:44]} 70. Ra6+ {[%emt 0:00:10]} Ke7 {[%emt 0:00:04]} 71. a3 {[%emt 0:00:20]} Rc8 {[%emt 0:01:43]} 72. axb4 {[%emt 0:00:18]} Rc3 {[%emt 0:00:04]} 73. Kf2 {[%emt 0:00:31]} Rxb3 {[%emt 0:00:05]} 74. b5 {[%emt 0:00:45]} Nd7 {[%emt 0:00:09]} 75. Bc4 {[%emt 0:00:47]} Rb4 {[%emt 0:00:26]} 76. Rc6 {[%emt 0:00:53]} Kd8 {[%emt 0:00:03]} 77. Be2 {[%emt 0:00:43]} Ke7 {[%emt 0:01:00]} 78. Bc4 {[%emt 0:00:06]} Kd8 {[%emt 0:00:47]} 79. Be2 {[%emt 0:00:04]} Rb2 {[%emt 0:00:34]} 80. Ke3 {[%emt 0:00:34]} f4+ {[%emt 0:01:34]} 81. gxf4 {[%emt 0:00:08]} gxf4+ {[%emt 0:00:04]} 82. Kf2 {[%emt 0:01:29]} f3 {[%emt 0:00:56]} 83. Kxf3 {[%emt 0:00:20]} Ne5+ {[%emt 0:00:05]} 84. Ke3 {[%emt 0:00:06]} Nxc6 {[%emt 0:00:04]} 85. bxc6 {[%emt 0:00:03]} Kc7 {[%emt 0:00:05]} 86. Bf3 {[%emt 0:00:08]} Rb3+ {[%emt 0:00:05]} 87. Kf4 {[%emt 0:00:07]} Kd6 {[%emt 0:00:05]} 88. Be4 {[%emt 0:00:21]} Rc3 {[%emt 0:00:06]} 89. Kf5 {[%emt 0:00:21]} Rc4 {[%emt 0:00:06]} 90. Bf3 {[%emt 0:00:30]} Rc3 {[%emt 0:00:14]} 91. Be4 {[%emt 0:00:05]} Rc5+ {[%emt 0:00:13]} 92. Kf6 {[%emt 0:01:25]} Re5 {[%emt 0:00:11]} 93. Bf5 {[%emt 0:00:36]} Rxf5+ {[%emt 0:00:06]} 94. Kxf5 {[%emt 0:00:05]} Kxc6 {[%emt 0:00:36]} 1/2-1/2

[Event "ETCC Open 2023"]
[Site "Budva"]
[Date "2023.11.14"]
[Round "4.49"]
[White "Pechac, Jergus"]
[Black "Dragnev, Valentin"]
[Result "1/2-1/2"]
[ECO "D30"]
[WhiteElo "2580"]
[BlackElo "2589"]
[Annotator "TA"]
[PlyCount "61"]
[EventDate "2023.11.10"]
[EventType "team-tourn"]
[EventCountry "MNE"]
[SourceTitle "playchess.com"]
[Source "ChessBase"]
[SourceQuality "1"]
[WhiteTeam "Slovakia"]
[BlackTeam "Austria"]
[WhiteTeamCountry "SVK"]
[BlackTeamCountry "AUT"]
[TimeControl "40/5400+30:1800+30"]

{[%evp 14,61,27,29,38,36,35,20,26,22,29,31,64,10,21,0,0,-19,-6,-18,-21,-22,-26,-18,-31,-14,0,0,0,-4,-2,-2,0,-7,0,-7,-7,-7,-7,-26,0,0,0,0,0,0,0,0,0,0]} 1. g3 {[%emt 0:03:45]} d5 {[%emt 0:00:42]} 2. Nf3 {[%emt 0:00:07]} Nf6 {[%emt 0:00:16]} 3. Bg2 {[%emt 0:00:05]} e6 {[%emt 0:00:17]} 4. O-O {[%emt 0:00:06]} Be7 {[%emt 0:00:05]} 5. c4 {[%emt 0:00:04]} O-O {[%emt 0:00:12]} 6. b3 {[%emt 0:00:04]} c5 {[%emt 0:00:23]} 7. cxd5 {[%emt 0:00:12]} exd5 {[%emt 0:00:08]} 8. d4 {[%emt 0:00:20]} Ne4 {[%emt 0:00:44] D30: Queen's Gambit Declined: Systems without Nc3.} 9. Bb2 {[%emt 0:00:49]} Bf6 {[%emt 0:00:36]} 10. Qc1 {[%emt 0:03:09]} cxd4 {[%emt 0:08:06]} 11. Nxd4 {[%emt 0:01:00] [#]} Re8 $146 {[%emt 0:02:59]} ({Predecessor:} 11... Nc6 12. Nxc6 bxc6 13. Bxe4 dxe4 14. Bxf6 Qxf6 15. Nc3 Qe5 16. Qe3 Bf5 17. Rac1 Rfd8 {1-0 Ruiz Castillo,J (2472)-Saksham,R (2210) Voronezh op-A 23rd 2019 (1)}) 12. Nd2 {[%emt 0:04:14]} Qb6 {[%emt 0:04:25]} 13. e3 {[%emt 0:19:47]} ({White should play} 13. Nxe4 $14 dxe4 14. Rd1) 13... Na6 $11 {[%emt 0:15:21][%cal Bb8a6,Ba6c5,Bc5d3][%mdl 32]} 14. Nxe4 {[%emt 0:26:27]} (14. Ne2 {with more complications.} Nb4 15. Nxe4 dxe4 16. Bxf6 Qxf6 17. Qc4) 14... dxe4 {[%emt 0:00:34]} 15. Qb1 {[%emt 0:00:23]} Nc5 {[%emt 0:06:22]} 16. Ba3 {[%emt 0:00:18]} Bxd4 {[%emt 0:36:18]} 17. exd4 {[%emt 0:00:05]} Nd3 {[%emt 0:00:07]} 18. Bxe4 $1 {[%emt 0:00:04][%mdl 64] [#] Remove Defender} Rxe4 {[%emt 0:00:07]} 19. Qxd3 {[%emt 0:00:05] White is weak on the light squares} Qxd4 {[%emt 0:01:28]} (19... Rxd4 {looks sharper.} 20. Rfe1 Bh3 21. Qf3 h6) 20. Qxd4 {[%emt 0:00:14]} (20. Qxe4 {feels hotter.} Qxe4 21. Rfe1 Qc6 22. Rac1) 20... Rxd4 {[%emt 0:00:01]} 21. Rad1 {[%emt 0:00:08]} Rxd1 {[%emt 0:00:17]} 22. Rxd1 {[%emt 0:00:04][%cal Rd1d8][%mdl 4096] [#] Endgame KRB-KRB} Bh3 {[%emt 0:00:19]} 23. Be7 {[%emt 0:00:06]} f6 {[%emt 0:02:29]} 24. Rd8+ {[%emt 0:00:17]} Rxd8 {[%emt 0:00:02]} 25. Bxd8 {[%emt 0:00:10] KB-KB} Kf7 {[%emt 0:00:11]} 26. f3 {[%emt 0:01:40]} Ke6 {[%emt 0:00:24]} 27. Kf2 {[%emt 0:00:17] The position is equal.} h5 {[%emt 0:21:07]} (27... b6 $5 28. Bc7 $8 Bf5 $11) 28. Ba5 {[%emt 0:00:16]} Bf5 {[%emt 0:00:00]} 29. Ke3 {[%emt 0:00:58]} Bb1 {[%emt 0:00:00]} 30. Kd2 $1 {[%emt 0:00:13]} b6 {[%emt 0:00:00]} ({Don't do} 30... Bxa2 31. Kc2 $16) 31. Bc3 {[%emt 0:00:15] Weighted Error Value: White=0.10 (very precise) /Black=0.06 (flawless)} 1/2-1/2

[Event "ETCC Open 2023"]
[Site "Budva"]
[Date "2023.11.14"]
[Round "4.50"]
[White "Ragger, Markus"]
[Black "Gazik, Viktor"]
[Result "0-1"]
[ECO "E16"]
[WhiteElo "2615"]
[BlackElo "2547"]
[Annotator "ChessBase"]
[PlyCount "90"]
[EventDate "2023.11.10"]
[EventType "team-tourn"]
[EventCountry "MNE"]
[SourceTitle "playchess.com"]
[Source "ChessBase"]
[SourceQuality "1"]
[WhiteTeam "Austria"]
[BlackTeam "Slovakia"]
[WhiteTeamCountry "AUT"]
[BlackTeamCountry "SVK"]
[TimeControl "40/5400+30:1800+30"]

1. Nf3 {[%emt 0:00:03]} Nf6 {[%emt 0:03:42]} 2. c4 {[%emt 0:00:07]} e6 {[%emt 0:01:05]} 3. g3 {[%emt 0:00:06]} b6 {[%emt 0:01:59]} 4. Bg2 {[%emt 0:00:27]} Bb7 {[%emt 0:00:08]} 5. d4 {[%emt 0:00:25]} Bb4+ {[%emt 0:01:47]} 6. Bd2 {[%emt 0:00:22]} c5 {[%emt 0:09:55]} 7. Bxb4 {[%emt 0:00:51]} cxb4 {[%emt 0:00:05]} 8. O-O {[%emt 0:00:17]} a5 {[%emt 0:02:46]} 9. a3 {[%emt 0:03:31]} Na6 {[%emt 0:01:52]} 10. Nbd2 {[%emt 0:00:19]} O-O {[%emt 0:03:33]} 11. Qb3 {[%emt 0:00:50]} d6 {[%emt 0:19:28]} 12. Rfd1 {[%emt 0:07:04]} Qe7 {[%emt 0:00:40]} 13. Ne1 {[%emt 0:01:33]} Bxg2 {[%emt 0:01:32]} 14. Kxg2 {[%emt 0:07:07]} e5 {[%emt 0:01:07]} 15. Nc2 {[%emt 0:03:05]} exd4 {[%emt 0:06:25]} 16. Nxd4 {[%emt 0:13:51]} Rac8 {[%emt 0:00:38]} 17. Qf3 {[%emt 0:04:18]} bxa3 {[%emt 0:19:48]} 18. Rxa3 {[%emt 0:04:09]} Qe5 {[%emt 0:04:59]} 19. Nc6 {[%emt 0:08:11]} Qe8 {[%emt 0:00:01]} 20. Na7 {[%emt 0:00:19]} Ra8 {[%emt 0:01:02]} 21. Nb5 {[%emt 0:03:51]} Qe5 {[%emt 0:00:02]} 22. Nf1 {[%emt 0:06:21]} Rad8 {[%emt 0:02:21]} 23. Nd4 {[%emt 0:05:15]} Nb4 {[%emt 0:00:32]} 24. Re3 {[%emt 0:06:00]} Qc5 {[%emt 0:00:16]} 25. Nf5 {[%emt 0:01:15]} Qxc4 {[%emt 0:04:28]} 26. Rd4 {[%emt 0:01:30]} Qc5 {[%emt 0:00:54]} 27. Qf4 {[%emt 0:05:37]} Kh8 {[%emt 0:05:12]} 28. Qg5 {[%emt 0:02:26]} Rg8 {[%emt 0:00:05]} 29. Rc3 {[%emt 0:02:11]} h6 {[%emt 0:03:34]} 30. Nxh6 {[%emt 0:07:46]} Qxd4 {[%emt 0:00:18]} 31. Nxf7+ {[%emt 0:00:05]} Kh7 {[%emt 0:00:01]} 32. Qf5+ {[%emt 0:00:08]} g6 {[%emt 0:00:03]} 33. Ng5+ {[%emt 0:01:15]} Kh6 {[%emt 0:00:58]} 34. Qh3+ {[%emt 0:00:02]} Nh5 {[%emt 0:00:06]} 35. Nf7+ {[%emt 0:03:33]} Kg7 {[%emt 0:00:02]} 36. Nxd8 {[%emt 0:00:03]} Rxd8 {[%emt 0:00:16]} 37. Ne3 {[%emt 0:00:18]} Nd5 {[%emt 0:00:43]} 38. Nf5+ {[%emt 0:02:22]} gxf5 {[%emt 0:00:17]} 39. Qxh5 {[%emt 0:00:01]} Nxc3 {[%emt 0:01:24]} 40. Qg5+ {[%emt 0:00:19]} Kf7 {[%emt 0:00:04]} 41. Qxd8 {[%emt 0:05:32]} Nd5 {[%emt 0:05:21]} 42. h4 {[%emt 0:00:11]} Nf6 {[%emt 0:01:50]} 43. b3 {[%emt 0:04:06]} Qe4+ {[%emt 0:11:30]} 44. Kg1 {[%emt 0:00:05]} Qb1+ {[%emt 0:00:19]} 45. Kg2 {[%emt 0:02:18]} Qxb3 {[%emt 0:01:00]} 0-1

[Event "ETCC Open 2023"]
[Site "Budva"]
[Date "2023.11.14"]
[Round "4.51"]
[White "Sahidi, Samir"]
[Black "Horvath, Dominik"]
[Result "1-0"]
[ECO "C65"]
[WhiteElo "2464"]
[BlackElo "2549"]
[Annotator "ChessBase"]
[PlyCount "125"]
[EventDate "2023.11.10"]
[EventType "team-tourn"]
[EventCountry "MNE"]
[SourceTitle "playchess.com"]
[Source "ChessBase"]
[SourceQuality "1"]
[WhiteTeam "Slovakia"]
[BlackTeam "Austria"]
[WhiteTeamCountry "SVK"]
[BlackTeamCountry "AUT"]
[TimeControl "40/5400+30:1800+30"]

1. e4 {[%emt 0:00:09]} e5 {[%emt 0:00:55]} 2. Nf3 {[%emt 0:02:28]} Nc6 {[%emt 0:00:08]} 3. Bb5 {[%emt 0:01:06]} Nf6 {[%emt 0:00:06]} 4. d3 {[%emt 0:00:26]} Bc5 {[%emt 0:00:14]} 5. c3 {[%emt 0:02:25]} O-O {[%emt 0:00:08]} 6. Nbd2 {[%emt 0:02:30]} Re8 {[%emt 0:00:54]} 7. O-O {[%emt 0:01:06]} d5 {[%emt 0:00:04]} 8. exd5 {[%emt 0:04:38]} a6 {[%emt 0:00:06]} 9. Bxc6 {[%emt 0:11:47]} bxc6 {[%emt 0:01:57]} 10. Ne4 {[%emt 0:00:40]} Nxe4 {[%emt 0:01:35]} 11. dxe4 {[%emt 0:00:06]} cxd5 {[%emt 0:00:06]} 12. Qxd5 {[%emt 0:01:25]} Qxd5 {[%emt 0:00:16]} 13. exd5 {[%emt 0:00:05]} a5 {[%emt 0:15:48]} 14. Be3 {[%emt 0:01:25]} Bf8 {[%emt 0:01:53]} 15. Nd2 {[%emt 0:13:47]} Rb8 {[%emt 0:00:37]} 16. b3 {[%emt 0:00:39]} Bf5 {[%emt 0:04:08]} 17. Rfd1 {[%emt 0:12:54]} Bc2 {[%emt 0:24:53]} 18. Rdc1 {[%emt 0:01:49]} Bd3 {[%emt 0:00:06]} 19. Nc4 {[%emt 0:15:03]} Rb5 {[%emt 0:04:27]} 20. Rd1 {[%emt 0:04:06]} e4 {[%emt 0:01:29]} 21. Nb2 {[%emt 0:09:57]} Rxd5 {[%emt 0:00:06]} 22. Nxd3 {[%emt 0:02:52]} exd3 {[%emt 0:00:10]} 23. Kf1 {[%emt 0:01:15]} g6 {[%emt 0:01:47]} 24. g3 {[%emt 0:01:03]} f5 {[%emt 0:07:15]} 25. Rd2 {[%emt 0:04:44]} Bg7 {[%emt 0:08:03]} 26. Rad1 {[%emt 0:00:34]} Bxc3 {[%emt 0:10:51]} 27. Rxd3 {[%emt 0:00:04]} Rxd3 {[%emt 0:00:03]} 28. Rxd3 {[%emt 0:00:08]} Bf6 {[%emt 0:00:33]} 29. a4 {[%emt 0:04:45]} Be7 {[%emt 0:03:44]} 30. Bd2 {[%emt 0:00:24]} Bb4 {[%emt 0:03:50]} 31. Bxb4 {[%emt 0:00:19]} axb4 {[%emt 0:00:03]} 32. Rd5 {[%emt 0:01:14]} c6 {[%emt 0:01:36]} 33. Rc5 {[%emt 0:00:30]} Rc8 {[%emt 0:00:20]} 34. Ke2 {[%emt 0:00:23]} Kf7 {[%emt 0:00:16]} 35. Re5 {[%emt 0:00:30]} Kf6 {[%emt 0:02:29]} 36. f4 {[%emt 0:00:06]} g5 {[%emt 0:01:25]} 37. Rc5 {[%emt 0:00:32]} gxf4 {[%emt 0:01:30]} 38. gxf4 {[%emt 0:00:01]} Ke6 {[%emt 0:00:55]} 39. Kd3 {[%emt 0:00:20]} Kd6 {[%emt 0:02:08]} 40. Rxf5 {[%emt 0:00:31]} Re8 {[%emt 0:00:02]} 41. Kd4 {[%emt 0:05:15]} Re2 {[%emt 0:04:41]} 42. Rh5 {[%emt 0:04:14]} c5+ {[%emt 0:01:21]} 43. Kc4 {[%emt 0:02:25]} Rc2+ {[%emt 0:05:12]} 44. Kb5 {[%emt 0:00:19]} Rc3 {[%emt 0:00:03]} 45. Rh6+ {[%emt 0:01:57]} Kd5 {[%emt 0:00:42]} 46. Rxh7 {[%emt 0:00:27]} Rxb3 {[%emt 0:03:15]} 47. Rd7+ {[%emt 0:15:05]} Ke6 {[%emt 0:02:34]} 48. Rd1 {[%emt 0:01:09]} Rc3 {[%emt 0:00:08]} 49. a5 {[%emt 0:00:30]} b3 {[%emt 0:00:11]} 50. a6 {[%emt 0:01:18]} b2 {[%emt 0:03:57]} 51. Rb1 {[%emt 0:01:05]} c4 {[%emt 0:00:02]} 52. Ka4 {[%emt 0:01:56]} Rc1 {[%emt 0:01:35]} 53. Rxb2 {[%emt 0:00:06]} c3 {[%emt 0:00:01]} 54. Ra2 {[%emt 0:00:37]} Rb1 {[%emt 0:00:16]} 55. a7 {[%emt 0:02:07]} c2 {[%emt 0:00:03]} 56. a8=Q {[%emt 0:00:07]} c1=Q {[%emt 0:00:02]} 57. Re2+ {[%emt 0:00:18]} Kd6 {[%emt 0:02:20]} 58. Qf8+ {[%emt 0:00:45]} Kc6 {[%emt 0:00:20]} 59. Re6+ {[%emt 0:00:37]} Kb7 {[%emt 0:00:13]} 60. Qf7+ {[%emt 0:00:32]} Ka8 {[%emt 0:03:00]} 61. Re8+ {[%emt 0:00:07]} Rb8 {[%emt 0:00:05]} 62. Qd5+ {[%emt 0:00:10]} Ka7 {[%emt 0:00:09]} 63. Re7+ {[%emt 0:00:14]} 1-0

[Event "ETCC Open 2023"]
[Site "Budva"]
[Date "2023.11.14"]
[Round "4.52"]
[White "Baidetskyi, Valentin"]
[Black "Haring, Filip"]
[Result "1/2-1/2"]
[ECO "B13"]
[WhiteElo "2478"]
[BlackElo "2446"]
[Annotator "ChessBase"]
[PlyCount "91"]
[EventDate "2023.11.10"]
[EventType "team-tourn"]
[EventCountry "MNE"]
[SourceTitle "playchess.com"]
[Source "ChessBase"]
[SourceQuality "1"]
[WhiteTeam "Austria"]
[BlackTeam "Slovakia"]
[WhiteTeamCountry "AUT"]
[BlackTeamCountry "SVK"]
[TimeControl "40/5400+30:1800+30"]

1. e4 {[%emt 0:00:04]} c6 {[%emt 0:03:21]} 2. d4 {[%emt 0:00:24]} d5 {[%emt 0:00:07]} 3. exd5 {[%emt 0:00:09]} cxd5 {[%emt 1:28:32]} 4. Bd3 {[%emt 0:00:05]} Nc6 {[%emt 0:00:00]} 5. c3 {[%emt 0:00:08]} Nf6 {[%emt 0:00:00]} 6. Bf4 {[%emt 0:00:10]} g6 {[%emt 0:00:00]} 7. Nf3 {[%emt 0:00:25]} Bf5 {[%emt 0:00:00]} 8. Bxf5 {[%emt 0:00:50]} gxf5 {[%emt 0:00:00]} 9. Nbd2 {[%emt 0:00:30]} e6 {[%emt 0:00:00]} 10. O-O {[%emt 0:04:04]} Bd6 {[%emt 0:00:00]} 11. Bg5 {[%emt 0:00:39]} Rg8 {[%emt 0:00:00]} 12. Qb3 {[%emt 0:23:18]} Rb8 {[%emt 0:00:00]} 13. Rfe1 {[%emt 0:06:15]} Be7 {[%emt 0:00:00]} 14. Bf4 {[%emt 0:15:59]} Bd6 {[%emt 0:00:00]} 15. Bg5 {[%emt 0:00:24]} Be7 {[%emt 0:00:00]} 16. Bxf6 {[%emt 0:05:26]} Bxf6 {[%emt 0:00:00]} 17. Qc2 {[%emt 0:00:10]} Kf8 {[%emt 0:00:00]} 18. Nb3 {[%emt 0:00:08]} Be7 {[%emt 0:00:00]} 19. Nc1 {[%emt 0:00:45]} Bd6 {[%emt 0:00:00]} 20. Nd3 {[%emt 0:00:59]} Qf6 {[%emt 0:00:00]} 21. Nfe5 {[%emt 0:05:26]} Kg7 {[%emt 0:00:00]} 22. f4 {[%emt 0:05:56]} Bxe5 {[%emt 0:00:00]} 23. fxe5 {[%emt 0:01:18]} Qg5 {[%emt 0:00:00]} 24. Qf2 {[%emt 0:03:16]} Kh8 {[%emt 0:00:00]} 25. Re3 {[%emt 0:00:27]} Ne7 {[%emt 0:00:00]} 26. Kh1 {[%emt 0:06:02]} Rg6 {[%emt 0:00:00]} 27. Rg3 {[%emt 0:06:14]} Qh4 {[%emt 0:00:00]} 28. Rxg6 {[%emt 0:00:47]} Qxf2 {[%emt 0:00:00]} 29. Rg8+ {[%emt 0:00:05]} Kxg8 {[%emt 0:00:00]} 30. Nxf2 {[%emt 0:00:02]} Nc6 {[%emt 0:00:00]} 31. g4 {[%emt 0:00:41]} Ne7 {[%emt 0:05:12]} 32. Kg2 {[%emt 0:00:56]} Kh8 {[%emt 0:04:17]} 33. h3 {[%emt 0:00:38]} Rg8 {[%emt 0:01:06]} 34. Kf3 {[%emt 0:00:05]} h5 {[%emt 0:01:00]} 35. Rg1 {[%emt 0:05:38]} Kh7 {[%emt 0:00:23]} 36. Nd3 {[%emt 0:01:26]} Kh6 {[%emt 0:01:09]} 37. Nf4 {[%emt 0:01:13]} h4 {[%emt 0:02:52]} 38. Rg2 {[%emt 0:01:10]} Rg5 {[%emt 0:00:31]} 39. a4 {[%emt 0:01:35]} b6 {[%emt 0:00:50]} 40. b3 {[%emt 0:02:30]} a6 {[%emt 0:00:38]} 41. c4 {[%emt 0:31:47]} fxg4+ {[%emt 0:06:23]} 42. hxg4 {[%emt 0:00:00]} Rg8 {[%emt 0:01:41]} 43. Rh2 {[%emt 0:00:00]} Kg5 {[%emt 0:00:18]} 44. Nh3+ {[%emt 0:00:00]} Kg6 {[%emt 0:00:41]} 45. Nf4+ {[%emt 0:00:00]} Kg5 {[%emt 0:00:03]} 46. Nh3+ {[%emt 0:00:00]} 1/2-1/2

[Event "ETCC Open 2023"]
[Site "Budva"]
[Date "2023.11.14"]
[Round "4.53"]
[White "Bjerre, Jonas Buhl"]
[Black "Dardha, Daniel"]
[Result "1-0"]
[ECO "E21"]
[WhiteElo "2633"]
[BlackElo "2575"]
[Annotator "TA"]
[PlyCount "47"]
[EventDate "2023.11.10"]
[EventType "team-tourn"]
[EventCountry "MNE"]
[SourceTitle "playchess.com"]
[Source "ChessBase"]
[SourceQuality "1"]
[WhiteTeam "Denmark"]
[BlackTeam "Belgium"]
[WhiteTeamCountry "DEN"]
[BlackTeamCountry "BEL"]
[TimeControl "40/5400+30:1800+30"]

{[%evp 12,47,25,25,40,24,31,15,31,31,45,-8,36,31,58,57,25,25,20,9,33,0,147,150,345,338,328,326,533,477,1297,669,1287,1285,1652,1108,1108,1090]} 1. d4 {[%emt 0:00:04]} Nf6 {[%emt 0:00:10]} 2. c4 {[%emt 0:00:09]} e6 {[%emt 0:00:04]} 3. Nc3 {[%emt 0:00:40]} Bb4 {[%emt 0:00:53]} 4. Nf3 {[%emt 0:00:57]} O-O {[%emt 0:03:13]} 5. Bg5 {[%emt 0:00:15]} h6 {[%emt 0:00:20]} 6. Bh4 {[%emt 0:00:14]} c5 {[%emt 0:02:06] 6...c5 scores better than 6...d5.} 7. e3 {[%emt 0:00:19]} d6 {[%emt 0:12:13] E21: Nimzo-Indian: 4 Nf3.} 8. Qc2 {[%emt 0:09:50]} Nc6 {[%emt 0:07:16] [#]} 9. d5 $146 {[%emt 0:10:23]} ({Predecessor:} 9. Be2 e5 10. dxe5 dxe5 11. O-O Bxc3 12. Qxc3 g5 13. Bg3 Ne4 14. Qa3 Qe7 15. Rfe1 {½-½ Ni,V (2120)-Padurariu,I (2242) EU-ch (Women) 9th 2008 (7)}) 9... exd5 {[%emt 0:08:18] The position is equal.} 10. cxd5 {[%emt 0:00:15]} g5 {[%emt 0:00:50]} 11. Bg3 {[%emt 0:12:42]} ({White should play} 11. Bxg5 $14 hxg5 12. dxc6) 11... Nxd5 {[%emt 0:03:21]} (11... Ne7 {simplifies} 12. e4 Ng6 13. Nd2 a6) 12. Bc4 {[%emt 0:03:24]} Be6 {[%emt 0:01:35]} 13. Bxd5 {[%emt 0:05:48]} Bxd5 {[%emt 0:02:14]} 14. Rd1 {[%emt 0:03:58][%cal Ba1d1,Bd1d6,Bd6h6,Bh6h7][%mdl 32]} Bxf3 {[%emt 0:08:13]} (14... Bxa2 $2 15. Rxd6 Qb6 16. O-O (16. Rxh6 Bb1 $18) 16... Bxc3 17. Rxh6 $18 (17. Qxc3 Rfd8 $16)) 15. gxf3 {[%emt 0:07:19]} Qf6 {[%emt 0:18:03]} 16. Rxd6 {[%emt 0:11:52]} (16. Ke2 {seems wilder.} Ne5 17. Bxe5 dxe5 18. Nd5) 16... Bxc3+ {[%emt 0:00:14]} (16... Qxf3 $11 {keeps the balance.} 17. Rg6+ fxg6 18. Qxg6+ Kh8 19. Qxh6+ Kg8 20. Qg6+ Kh8 21. Qh6+ Kg8 22. Qg6+ Kh8 23. Qh6+) 17. bxc3 $16 {[%emt 0:02:34]} Qxf3 {[%emt 0:18:25] [#] Black cannot hold the game after this.} (17... Qg7 $16 {might work better.}) 18. Rxh6 $1 $18 {[%emt 0:05:14][%csl Gh6][%cal Rc2h7]} Rfd8 {[%emt 0:02:48]} (18... Qxh1+ $2 19. Ke2 f5 20. Qb3+ c4 21. Qxc4+ Kg7 22. Qe6 $18) 19. Rg1 {[%emt 0:03:59]} Rd5 $2 {[%emt 0:02:40]} (19... Kg7 20. Qh7+ (20. Rh3 Kf6 $11) 20... Kf8 21. Bd6+ {[%mdl 64] Discovered Attack} Rxd6 {[%mdl 64] Remove Defender} 22. Rxd6 Ke7) 20. Bd6 {[%emt 0:03:10][%csl Gh6][%cal Rc2h7,Bg3d6,Bd6f4,Bf4d6][%mdl 32] White is clearly winning.} f5 {[%emt 0:01:00]} (20... Rxd6 $142 21. Rxg5+ Kf8 22. Rxd6 Re8) 21. Rxg5+ {[%emt 0:02:39]} Kf7 {[%emt 0:00:01]} 22. Bf4 {[%emt 0:01:49]} Rg8 {[%emt 0:01:15]} 23. Rh7+ {[%emt 0:04:34]} (23. Qb3 $2 Rxg5 24. Bxg5 Na5 $19) 23... Kf8 {[%emt 0:00:07] [#]} 24. Bd6+ $1 {[%emt 0:01:23][%mdl 576] Deflection. Beautiful play by Bjerre!   Weighted Error Value: White=0.10 (very precise) /Black=0.61} 1-0